bitfinex-derivatives/quotes_BTCF0:USTF0_20241019
["timestamp","ask_amount","ask_price","bid_price","bid_amount"]
[1729365800636,0.0316,68257.0,68256.0,0.28709866]
[1729365804546,0.0316,68257.0,68256.0,0.31322127]
[1729365805444,0.09649044,68257.0,68256.0,0.31322127]
[1729365805647,0.06061552,68257.0,68256.0,0.31322127]
[1729365805845,0.00219776,68263.0,68256.0,0.31322127]
[1729365805846,0.06489044,68258.0,68256.0,0.31322127]
[1729365806046,0.065911,68271.0,68256.0,0.31322127]
[1729365806047,0.06489044,68257.0,68256.0,0.31322127]
[1729365806249,0.0632,68270.0,68268.0,0.065913]
[1729365806443,0.11025029,68269.0,68268.0,0.065913]
[1729365806834,0.11025029,68269.0,68268.0,0.2861363]
[1729365809548,0.11025029,68269.0,68268.0,0.1742176]
[1729365810245,0.27115327,68269.0,68268.0,0.1742176]
[1729365810452,0.27115327,68269.0,68268.0,0.2401296]
[1729365810844,0.17616229,68269.0,68268.0,0.2401296]
[1729365812247,0.065912,68269.0,68268.0,0.2401296]
[1729365819357,0.17512298,68269.0,68268.0,0.2401296]
[1729365822565,0.10921098,68269.0,68268.0,0.2401296]
[1729365822858,0.065908,68273.0,68268.0,0.2401296]
[1729365822859,0.16090298,68280.0,68268.0,0.7742176]
[1729365823064,0.3608,68285.0,68278.0,0.066103]
[1729365823261,0.065902,68279.0,68278.0,0.0002]
[1729365823458,0.426702,68279.0,68278.0,0.0002]
[1729365823960,0.46256676,68279.0,68278.0,0.0002]
[1729365824163,0.065904,68278.0,68277.0,0.065903]
[1729365824351,0.1726127,68278.0,68277.0,0.065903]
[1729365824549,0.2610066,68278.0,68277.0,0.065903]
[1729365825562,0.1951026,68278.0,68277.0,0.065903]
[1729365825953,0.14257346,68278.0,68277.0,0.065903]
[1729365827460,0.0321,68278.0,68277.0,0.065903]
[1729365828151,0.0321,68278.0,68266.0,0.40459724]
[1729365828152,0.065909,68272.0,68266.0,0.40459724]
[1729365828352,0.098612,68271.0,68270.0,0.06591]
[1729365828552,0.129712,68271.0,68270.0,0.06591]
[1729365829262,0.129712,68271.0,68266.0,0.3608]
[1729365829263,0.065914,68267.0,68266.0,0.065915]
[1729365830567,0.065914,68267.0,68264.0,0.00219713]
[1729365830568,0.065916,68265.0,68264.0,0.00219713]
[1729365830771,0.426716,68265.0,68264.0,0.00219713]
[1729365830971,1.026716,68265.0,68264.0,0.00219713]
[1729365833964,1.05355086,68265.0,68264.0,0.00219713]
[1729365834770,0.45355086,68265.0,68264.0,0.00219713]
[1729365834966,1.05355086,68265.0,68264.0,0.00219713]
[1729365835371,0.45355086,68265.0,68264.0,0.00219713]
[1729365838373,0.38763486,68265.0,68260.0,0.065921]
[1729365838673,0.065919,68263.0,68260.0,0.065921]
[1729365840562,0.38763486,68265.0,68260.0,0.065921]
[1729365840765,0.38763486,68265.0,68264.0,0.0002]
[1729365840766,0.45355086,68265.0,68264.0,0.0002]
[1729365842676,0.065919,68263.0,68260.0,0.04137683]
[1729365842969,0.10914315,68262.0,68260.0,0.04137683]
[1729365843177,0.10914315,68261.0,68260.0,0.04137683]
[1729365843562,0.17506315,68261.0,68260.0,0.04137683]
[1729365844663,0.25504823,68261.0,68260.0,0.04137683]
[1729365845371,0.33589221,68261.0,68260.0,0.04137683]
[1729365846076,0.17506315,68261.0,68260.0,0.04137683]
[1729365849675,0.06592,68261.0,68260.0,0.04137683]
[1729365853875,0.38763486,68265.0,68256.0,0.0002]
[1729365854170,0.066117,68264.0,68257.0,0.21922955]
[1729365854368,0.066117,68264.0,68263.0,0.065918]
[1729365864580,0.22779428,68264.0,68263.0,0.04143626]
[1729365865185,0.22779428,68264.0,68257.0,0.0318]
[1729365865380,0.10913594,68263.0,68257.0,0.0318]
[1729365865582,0.10913594,68262.0,68258.0,0.22113993]
[1729365865782,0.10913594,68261.0,68258.0,0.22113993]
[1729365866083,0.10913594,68260.0,68259.0,0.065922]
[1729365866588,0.06417086,68260.0,68259.0,0.28537082]
[1729365869490,0.06417227,68260.0,68259.0,0.21944882]
[1729365869684,0.10913829,68260.0,68259.0,0.28537082]
[1729365869890,0.10913829,68260.0,68259.0,0.065922]
[1729365870185,0.10913829,68260.0,68259.0,0.28497947]
[1729365872589,0.066117,68264.0,68259.0,0.21905747]
[1729365872788,0.066117,68264.0,68263.0,0.065918]
[1729365872984,0.066117,68264.0,68263.0,0.066118]
[1729365879701,0.17525237,68264.0,68263.0,0.066118]
[1729365884297,0.17525452,68264.0,68263.0,0.066118]
[1729365887403,0.17525452,68264.0,68263.0,0.0419035]
[1729365887702,0.066117,68264.0,68263.0,0.0419035]
[1729365888597,0.066117,68264.0,68263.0,0.0002]
[1729365893810,0.0002,68264.0,68263.0,0.33047473]
[1729365894015,0.0002,68264.0,68263.0,0.70270069]
[1729365894609,0.02849515,68264.0,68263.0,0.2865794]
[1729365894811,0.06436598,68264.0,68263.0,0.2865794]
[1729365895001,0.02849515,68264.0,68263.0,0.2865794]
[1729365895212,0.10932763,68264.0,68263.0,0.2865794]
[1729365897510,0.10932763,68264.0,68263.0,0.17820575]
[1729365897709,0.17524463,68264.0,68263.0,0.24412375]
[1729365897918,0.17524463,68264.0,68260.0,0.065921]
[1729365897919,0.06592,68261.0,68260.0,0.065921]
[1729365898220,0.13008598,68261.0,68260.0,0.065921]
[1729365898426,0.17504763,68261.0,68260.0,0.065921]
[1729365898609,0.17505923,68261.0,68260.0,0.065921]
[1729365899707,0.065923,68258.0,68256.0,0.066124]
[1729365899908,0.10913923,68257.0,68256.0,0.066124]
[1729365900103,0.17506323,68257.0,68256.0,0.066124]
[1729365900408,0.17506323,68257.0,68256.0,0.28506027]
[1729365902223,0.17506687,68257.0,68256.0,0.28506027]
[1729365902714,0.065924,68257.0,68256.0,0.28506027]
[1729365904614,0.3608,68259.0,68258.0,0.065923]
[1729365904922,0.3608,68259.0,68258.0,0.066123]
[1729365906316,0.45328474,68261.0,68260.0,0.065921]
[1729365906509,0.45328474,68261.0,68260.0,0.10980273]
[1729365906709,0.45328474,68261.0,68260.0,0.11000273]
[1729365906911,0.45328474,68261.0,68260.0,0.066121]
[1729365907411,0.45328474,68261.0,68260.0,0.11000273]
[1729365907611,0.45328474,68261.0,68260.0,0.066121]
[1729365909324,0.45328474,68261.0,68260.0,0.11000273]
[1729365909713,0.56242972,68261.0,68260.0,0.0002]
[1729365910122,0.61497541,68261.0,68260.0,0.0002]
[1729365910313,0.61497541,68261.0,68260.0,0.066121]
[1729365911722,0.61497299,68261.0,68260.0,0.066121]
[1729365912816,0.25417299,68261.0,68260.0,0.066121]
[1729365913017,0.2016273,68261.0,68260.0,0.066121]
[1729365913319,0.25417299,68261.0,68260.0,0.066121]
[1729365913516,0.2016273,68261.0,68260.0,0.066121]
[1729365913916,0.25417299,68261.0,68260.0,0.066121]
[1729365914617,0.2016273,68261.0,68260.0,0.066121]
[1729365915821,0.5624273,68261.0,68260.0,0.066121]
[1729365916511,0.56242734,68261.0,68260.0,0.066121]
[1729365917736,0.45328474,68261.0,68260.0,0.066121]
[1729365921630,0.45328474,68261.0,68260.0,0.0002]
[1729365925535,0.45328474,68261.0,68260.0,0.066121]
[1729365931437,0.09248474,68261.0,68260.0,0.066121]
[1729365931745,0.45328474,68261.0,68260.0,0.066121]
[1729365931943,0.09248474,68261.0,68260.0,0.066121]
[1729365932534,0.45328474,68261.0,68260.0,0.066121]
[1729365932734,0.45328474,68261.0,68260.0,0.04277107]
[1729365932735,0.56242853,68261.0,68260.0,0.04277107]
[1729365932936,0.61497365,68261.0,68260.0,0.04277107]
[1729365933245,0.25417365,68261.0,68260.0,0.04277107]
[1729365933446,0.56242853,68261.0,68260.0,0.04277107]
[1729365933942,0.61497365,68261.0,68260.0,0.04277107]
[1729365934146,0.25417365,68261.0,68260.0,0.04277107]
[1729365934347,0.56242853,68261.0,68260.0,0.04277107]
[1729365934741,0.61497365,68261.0,68260.0,0.04277107]
[1729365936153,0.25417365,68261.0,68260.0,0.04277107]
[1729365936344,0.56242853,68261.0,68260.0,0.04277107]
[1729365937050,0.61497365,68261.0,68260.0,0.04277107]
[1729365938748,0.25417365,68261.0,68260.0,0.04277107]
[1729365939743,0.09248474,68261.0,68260.0,0.1467387]
[1729365939938,0.09248474,68261.0,68260.0,0.21993749]
[1729365940436,0.09248474,68261.0,68260.0,0.1467387]
[1729365940641,0.09248474,68261.0,68260.0,0.21993688]
[1729365940842,0.09248474,68261.0,68260.0,0.21995561]
[1729365941750,0.09248474,68261.0,68260.0,0.11596925]
[1729365942554,0.09248474,68261.0,68260.0,0.21998108]
[1729365943943,0.09248474,68261.0,68260.0,0.11596925]
[1729365944250,0.09248474,68261.0,68260.0,0.21999199]
[1729365944647,0.09248474,68261.0,68260.0,0.21999742]
[1729365947354,0.09248474,68261.0,68260.0,0.11596925]
[1729365947557,0.09248474,68261.0,68260.0,0.21998956]
[1729365948054,0.09248474,68261.0,68260.0,0.04277107]
[1729365950649,0.0004,68264.0,68263.0,0.065918]
[1729365950848,0.0004,68264.0,68263.0,0.066118]
[1729365951048,0.0004,68264.0,68263.0,0.28631272]
[1729365954968,0.02869687,68264.0,68263.0,0.28631272]
[1729365955171,0.10953427,68264.0,68263.0,0.28631272]
[1729365956275,0.10953427,68264.0,68263.0,0.06756419]
[1729365957481,0.10953427,68264.0,68263.0,0.13348219]
[1729365957864,0.17545127,68264.0,68263.0,0.13348219]
[1729365961264,0.06592,68261.0,68259.0,0.065921]
[1729365961475,0.10913427,68260.0,68259.0,0.065921]
[1729365961677,0.10913427,68260.0,68259.0,0.28610251]
[1729365961880,0.06592,68261.0,68259.0,0.28610251]
[1729365962064,0.06592,68261.0,68260.0,0.0002]
[1729365962978,0.06592,68261.0,68260.0,0.066121]
[1729365963163,0.3612,68264.0,68263.0,0.065918]
[1729365963369,0.3612,68264.0,68263.0,0.066118]
[1729365965180,0.427117,68264.0,68263.0,0.066118]
[1729365965378,0.3612,68264.0,68263.0,0.066118]
[1729365965578,0.3612,68264.0,68263.0,0.28450274]
[1729365966476,0.0004,68264.0,68263.0,0.28450274]
[1729365966680,0.0004,68264.0,68263.0,0.3283885]
[1729365968377,0.0004,68264.0,68263.0,1.3678685]
[1729365968587,0.0004,68264.0,68263.0,1.32398274]
[1729365969882,0.02869356,68264.0,68263.0,1.20671796]
[1729365970277,0.02869356,68264.0,68263.0,1.23283872]
[1729365970580,0.02869356,68264.0,68263.0,1.29875672]
[1729365970794,0.06456238,68264.0,68263.0,1.29875672]
[1729365970973,0.27051103,68264.0,68263.0,1.29875672]
[1729365971380,0.10952151,68264.0,68263.0,1.29875672]
[1729365972379,0.05962151,68264.0,68263.0,1.29875672]
[1729365972579,0.0002,68265.0,68264.0,0.065917]
[1729365972775,0.03606719,68265.0,68264.0,1.105597]
[1729365972978,0.03606719,68265.0,68264.0,1.32471679]
[1729365974584,0.0360659,68265.0,68264.0,1.32471679]
[1729365976888,0.0002,68265.0,68264.0,1.32471679]
[1729365979703,0.0002,68265.0,68264.0,1.38327525]
[1729365980598,0.0002,68265.0,68264.0,1.32471679]
[1729365980890,0.0002,68265.0,68264.0,1.38327525]
[1729365981689,0.0002,68265.0,68264.0,1.32471679]
[1729365982277,0.0002,68265.0,68264.0,1.38327525]
[1729365982487,0.0002,68265.0,68264.0,1.32471679]
[1729365983584,0.0002,68265.0,68264.0,1.38305281]
[1729365984790,0.0002,68265.0,68264.0,1.32471679]
[1729365985291,0.0002,68267.0,68266.0,0.065915]
[1729365985679,0.0002,68267.0,68266.0,0.88580998]
[1729365986388,0.0002,68267.0,68266.0,0.97508998]
[1729365988288,0.0002,68267.0,68266.0,0.37508998]
[1729365991896,0.0002,68267.0,68266.0,0.48038793]
[1729365992288,0.0002,68267.0,68266.0,0.37508998]
[1729365992596,0.0002,68267.0,68266.0,0.48040744]
[1729365993293,0.0002,68268.0,68267.0,0.065914]
[1729365993602,0.0002,68268.0,68267.0,0.3917962]
[1729365993788,0.0002,68268.0,68267.0,0.3919962]
[1729365995605,0.0327,68282.0,68280.0,0.065901]
[1729365995899,0.0327,68282.0,68280.0,0.75035577]
[1729365997191,0.0327,68282.0,68280.0,0.75025878]
[1729365997399,0.0327,68282.0,68280.0,0.82323149]
[1729365997594,0.0327,68282.0,68280.0,0.71844442]
[1729365997987,0.0327,68282.0,68280.0,0.82338266]
[1729365998187,0.0327,68282.0,68280.0,0.64547171]
[1729365998399,0.0327,68282.0,68280.0,0.71844442]
[1729365998597,0.0327,68282.0,68280.0,0.64547171]
[1729366000196,0.1418966,68281.0,68280.0,0.67128879]
[1729366001002,0.1418966,68281.0,68280.0,0.31048879]
[1729366002800,0.0918966,68281.0,68280.0,0.31048879]
[1729366004502,0.0918966,68281.0,68280.0,0.28467171]
[1729366004712,0.0918966,68281.0,68280.0,0.21877071]
[1729366004899,0.04694773,68281.0,68280.0,0.28467171]
[1729366005388,0.11351089,68282.0,68280.0,0.21877071]
[1729366005594,0.08081089,68281.0,68280.0,0.28467171]
[1729366005794,0.11121089,68281.0,68280.0,0.28467171]
[1729366006796,0.11121269,68281.0,68280.0,0.28467171]
[1729366006993,0.0304,68281.0,68280.0,0.28467171]
[1729366011300,0.0327,68282.0,68281.0,0.0659]
[1729366011805,0.0327,68282.0,68281.0,0.28478776]
[1729366017707,0.0313,68283.0,68282.0,0.065899]
[1729366017913,0.0313,68283.0,68282.0,0.10987569]
[1729366018115,0.0313,68283.0,68282.0,0.32872326]
[1729366022015,0.0313,68283.0,68282.0,0.17690551]
[1729366022016,0.05958792,68283.0,68282.0,0.17690551]
[1729366022220,0.10453808,68283.0,68282.0,0.24280451]
[1729366022408,0.14039974,68283.0,68282.0,0.24280451]
[1729366024523,0.14040088,68283.0,68282.0,0.24280451]
[1729366025016,0.14040088,68283.0,68279.0,0.065902]
[1729366025217,0.52187291,68280.0,68279.0,0.065902]
[1729366025425,0.63097379,68280.0,68279.0,0.065902]
[1729366025723,0.63097379,68280.0,68266.0,0.09223691]
[1729366025724,0.46990088,68280.0,68266.0,0.09223691]
[1729366025918,0.46990088,68280.0,68274.0,0.065907]
[1729366025919,0.0002,68275.0,68274.0,0.065907]
[1729366026109,0.07343884,68275.0,68274.0,0.28665552]
[1729366026418,0.10930088,68275.0,68274.0,0.065907]
[1729366026623,0.17520688,68275.0,68274.0,0.065907]
[1729366030013,0.066106,68275.0,68274.0,0.17185844]
[1729366034018,0.066106,68275.0,68274.0,0.17191599]
[1729366034634,0.066106,68275.0,68274.0,0.17183982]
[1729366037127,0.066106,68275.0,68274.0,0.065907]
[1729366041627,0.066106,68275.0,68267.0,0.0002]
[1729366041628,0.0002,68275.0,68269.0,0.07296079]
[1729366041823,0.065907,68274.0,68273.0,0.05836707]
[1729366042132,0.065908,68273.0,68272.0,0.05836707]
[1729366043529,0.065909,68272.0,68271.0,0.05836707]
[1729366043741,0.065909,68272.0,68270.0,0.05836707]
[1729366043742,0.0308,68272.0,68270.0,0.05836707]
[1729366044029,0.06591,68271.0,68270.0,0.05836707]
[1729366044825,0.06591,68271.0,68269.0,0.12427907]
[1729366045036,0.06416578,68270.0,68269.0,0.065912]
[1729366045239,0.02829506,68270.0,68269.0,0.065912]
[1729366045838,0.09420606,68270.0,68269.0,0.065912]
[1729366047340,0.13007667,68270.0,68269.0,0.065912]
[1729366047551,0.13007642,68270.0,68269.0,0.065912]
[1729366048745,0.13007653,68270.0,68269.0,0.065912]
[1729366052131,0.065911,68270.0,68269.0,0.17215532]
[1729366053448,0.065911,68270.0,68269.0,0.17217379]
[1729366054450,0.065911,68270.0,68269.0,0.25975711]
[1729366058348,0.065911,68270.0,68269.0,0.17219222]
[1729366060147,0.06416467,68270.0,68269.0,0.28582592]
[1729366060832,0.02829457,68270.0,68269.0,0.28582592]
[1729366061644,0.02829457,68270.0,68269.0,0.31221912]
[1729366061948,0.3608,68273.0,68269.0,0.31221912]
[1729366061949,0.3608,68273.0,68272.0,0.065909]
[1729366062144,0.0002,68275.0,68272.0,0.426909]
[1729366062351,0.0002,68275.0,68274.0,0.066107]
[1729366062740,0.0002,68275.0,68274.0,0.28490112]
[1729366065045,0.0002,68275.0,68274.0,0.31820112]
[1729366066846,0.0002,68275.0,68274.0,0.21899412]
[1729366066847,0.426906,68275.0,68274.0,0.21899412]
[1729366069855,0.426906,68275.0,68274.0,0.0002]
[1729366070045,0.426906,68275.0,68274.0,0.04400895]
[1729366070639,0.45294404,68275.0,68274.0,0.04400895]
[1729366071239,0.45294404,68275.0,68274.0,0.0002]
[1729366071458,0.45294404,68275.0,68274.0,0.04400808]
[1729366072956,0.45294404,68275.0,68274.0,0.0002]
[1729366074258,0.45294404,68275.0,68274.0,0.04400808]
[1729366074756,0.426906,68275.0,68274.0,0.10991508]
[1729366075252,0.49106593,68275.0,68274.0,0.066107]
[1729366076057,0.13026593,68275.0,68274.0,0.066107]
[1729366081256,0.13026187,68275.0,68274.0,0.066107]
[1729366082258,0.13026187,68275.0,68274.0,0.1719978]
[1729366082259,0.066106,68275.0,68274.0,0.1719978]
[1729366083561,0.0002,68275.0,68274.0,0.1719978]
[1729366083752,0.0002,68275.0,68274.0,0.39109028]
[1729366086460,0.0002,68275.0,68274.0,0.46412729]
[1729366087364,0.0002,68275.0,68274.0,0.39109028]
[1729366090464,0.0002,68275.0,68274.0,0.28519948]
[1729366097266,0.06435639,68275.0,68274.0,0.28519948]
[1729366100066,0.13026239,68275.0,68274.0,0.28519948]
[1729366100458,0.06435639,68275.0,68274.0,0.28519948]
[1729366100667,0.03606547,68275.0,68274.0,0.28519948]
[1729366100967,0.0002,68275.0,68274.0,0.28519948]
[1729366101469,0.07344547,68275.0,68274.0,0.28519948]
[1729366101675,0.10931094,68275.0,68274.0,0.28519948]
[1729366105264,0.10931094,68275.0,68274.0,0.51756489]
[1729366105265,0.0002,68275.0,68274.0,0.51756489]
[1729366110173,0.0002,68275.0,68274.0,0.54405425]
[1729366111961,0.066106,68275.0,68274.0,0.51756489]
[1729366112372,0.09439717,68275.0,68274.0,0.28519948]
[1729366112875,0.17521828,68275.0,68274.0,0.28519948]
[1729366113462,0.17521828,68275.0,68274.0,0.21929248]
[1729366114288,0.17522007,68275.0,68274.0,0.21929248]
[1729366118964,0.10931407,68275.0,68270.0,0.3608]
[1729366119172,0.065919,68262.0,68261.0,0.065919]
[1729366119478,0.17503307,68262.0,68261.0,0.065919]
[1729366119779,0.17503307,68262.0,68261.0,0.39020342]
[1729366119780,0.25621301,68262.0,68261.0,0.39020342]
[1729366120280,0.14709894,68262.0,68261.0,0.62183485]
[1729366120479,0.08117994,68262.0,68261.0,0.62183485]
[1729366120877,0.14709894,68262.0,68261.0,0.42995624]
[1729366121276,0.14709894,68262.0,68261.0,0.20887182]
[1729366121581,0.14709894,68262.0,68261.0,0.28194565]
[1729366121790,0.50789894,68262.0,68261.0,0.17627383]
[1729366121979,0.50789894,68262.0,68261.0,0.1032]
[1729366122673,0.50789894,68262.0,68261.0,0.16164268]
[1729366123479,0.50789894,68262.0,68261.0,0.1032]
[1729366124986,0.50789894,68262.0,68261.0,0.14700451]
[1729366125579,0.50789894,68262.0,68261.0,0.14699381]
[1729366127383,0.50789894,68262.0,68261.0,0.20858009]
[1729366129178,0.50789894,68262.0,68261.0,0.20852944]
[1729366129385,0.50789894,68262.0,68261.0,0.28147056]
[1729366129783,0.50789894,68262.0,68261.0,0.20852944]
[1729366130380,0.50789894,68262.0,68261.0,0.27444944]
[1729366130686,0.08117994,68262.0,68261.0,0.27444944]
[1729366130877,0.03720017,68262.0,68261.0,0.49458494]
[1729366131278,0.0304,68265.0,68264.0,0.065917]
[1729366131473,0.0892,68270.0,68264.0,0.19382182]
[1729366131679,0.0892,68270.0,68269.0,0.001]
[1729366131987,0.155111,68270.0,68269.0,0.001]
[1729366134187,0.065911,68270.0,68269.0,0.001]
[1729366135291,0.09420625,68270.0,68269.0,0.001]
[1729366138595,0.065911,68270.0,68269.0,0.001]
[1729366138891,0.09420646,68270.0,68269.0,0.001]
[1729366142391,0.065911,68270.0,68269.0,0.001]
[1729366143585,0.065911,68270.0,68269.0,0.04475549]
[1729366144381,0.065911,68270.0,68269.0,0.001]
[1729366148380,0.065911,68270.0,68269.0,0.05934066]
[1729366148583,0.065911,68270.0,68269.0,0.001]
[1729366150291,0.065911,68270.0,68269.0,0.05934066]
[1729366150490,0.065911,68270.0,68269.0,0.001]
[1729366150491,0.17504243,68270.0,68269.0,0.001]
[1729366151692,0.17504511,68270.0,68269.0,0.001]
[1729366156588,0.17504247,68270.0,68269.0,0.001]
[1729366157390,0.065911,68270.0,68269.0,0.001]
[1729366165604,0.10178295,68270.0,68269.0,0.001]
[1729366165897,0.09420703,68270.0,68269.0,0.001]
[1729366166108,0.17504204,68270.0,68269.0,0.001]
[1729366166307,0.17504216,68270.0,68269.0,0.001]
[1729366171295,0.17504313,68270.0,68269.0,0.001]
[1729366171493,0.33620409,68270.0,68269.0,0.001]
[1729366171808,0.17504313,68270.0,68269.0,0.001]
[1729366172308,0.17504355,68270.0,68269.0,0.001]
[1729366172505,0.065911,68270.0,68269.0,0.22997116]
[1729366180715,0.065911,68270.0,68269.0,0.05953342]
[1729366181513,0.065911,68270.0,68269.0,0.001]
[1729366182509,0.065911,68270.0,68269.0,0.04490013]
[1729366183111,0.065911,68270.0,68269.0,0.001]
[1729366183408,0.065911,68270.0,68269.0,0.0448958]
[1729366184302,0.787511,68270.0,68269.0,0.0448958]
[1729366184917,0.787511,68270.0,68269.0,0.001]
[1729366185307,0.787511,68270.0,68269.0,0.04488937]
[1729366185507,0.787511,68270.0,68269.0,0.001]
[1729366185905,0.787511,68270.0,68269.0,0.04488935]
[1729366187316,0.787511,68270.0,68269.0,0.04488671]
[1729366187616,0.94919146,68270.0,68269.0,0.001]
[1729366188717,0.22759146,68270.0,68269.0,0.001]
[1729366189015,0.53584909,68270.0,68269.0,0.001]
[1729366190916,0.53584882,68270.0,68269.0,0.001]
[1729366195712,0.426711,68270.0,68269.0,0.10554962]
[1729366199624,0.515311,68270.0,68269.0,0.10554962]
[1729366200618,0.515311,68270.0,68269.0,0.10552279]
[1729366202722,0.57948191,68270.0,68269.0,0.001]
[1729366204121,0.57948177,68270.0,68269.0,0.001]
[1729366208916,0.57948235,68270.0,68269.0,0.001]
[1729366209227,0.62444777,68270.0,68269.0,0.001]
[1729366209822,0.515311,68270.0,68269.0,0.10559173]
[1729366214028,0.515311,68270.0,68269.0,0.10561638]
[1729366215128,0.515311,68270.0,68269.0,0.19336838]
[1729366215525,0.515311,68270.0,68269.0,0.1055701]
[1729366215526,0.065911,68270.0,68269.0,0.1055701]
[1729366215717,0.065911,68270.0,68269.0,0.23002713]
[1729366217823,0.065911,68270.0,68269.0,0.001]
[1729366220336,0.065911,68270.0,68269.0,0.05952584]
[1729366220630,0.065911,68270.0,68269.0,0.001]
[1729366222136,0.065911,68270.0,68269.0,0.04490061]
[1729366223033,0.065911,68270.0,68269.0,0.001]
[1729366224137,0.065911,68270.0,68269.0,0.04489835]
[1729366224436,0.065911,68270.0,68269.0,0.001]
[1729366224832,0.09420882,68270.0,68269.0,0.0006594]
[1729366225239,0.17504894,68270.0,68269.0,0.0006594]
[1729366226042,0.89664894,68270.0,68269.0,0.0006594]
[1729366226242,0.94919124,68270.0,68269.0,0.0006594]
[1729366230764,1.03779124,68270.0,68269.0,0.0006594]
[1729366232660,0.9210769,68270.0,68269.0,0.0006594]
[1729366232871,0.876111,68270.0,68269.0,0.0006594]
[1729366239776,1.03778924,68270.0,68269.0,0.0006594]
[1729366242769,0.92865265,68270.0,68269.0,0.0006594]
[1729366243082,1.03778989,68270.0,68269.0,0.0006594]
[1729366244780,1.19896353,68270.0,68269.0,0.0006594]
[1729366244982,1.14642188,68270.0,68269.0,0.0006594]
[1729366245474,1.0377899,68270.0,68269.0,0.0006594]
[1729366247974,0.876111,68270.0,68269.0,0.0006594]
[1729366250881,0.876111,68270.0,68269.0,0.05918524]
[1729366251284,0.876111,68270.0,68269.0,0.0006594]
[1729366252077,0.876111,68270.0,68269.0,0.05852584]
[1729366252473,0.065912,68269.0,68268.0,0.05852584]
[1729366252988,0.81104,68270.0,68264.0,0.13907288]
[1729366253187,0.876111,68270.0,68269.0,0.05874437]
[1729366254882,0.876111,68270.0,68269.0,0.0002]
[1729366254883,1.03778868,68270.0,68269.0,0.0002]
[1729366256080,1.19901989,68270.0,68269.0,0.0002]
[1729366256286,1.03778868,68270.0,68269.0,0.0002]
[1729366263001,0.876111,68270.0,68269.0,0.0002]
[1729366268182,0.876111,68270.0,68269.0,0.04411178]
[1729366268384,0.876111,68270.0,68269.0,0.0002]
[1729366268795,0.876111,68270.0,68269.0,0.04410887]
[1729366269999,0.98525351,68270.0,68269.0,0.0002]
[1729366270292,0.876111,68270.0,68269.0,0.0002]
[1729366270492,0.98525414,68270.0,68269.0,0.0002]
[1729366270693,1.01555414,68270.0,68269.0,0.0002]
[1729366271001,1.17679414,68270.0,68269.0,0.0002]
[1729366271393,0.065919,68262.0,68261.0,0.1032]
[1729366271592,0.53586214,68262.0,68261.0,0.1032]
[1729366275403,0.53586478,68262.0,68261.0,0.1032]
[1729366275797,0.56185637,68262.0,68261.0,0.1032]
[1729366277998,0.45271059,68262.0,68261.0,0.33287109]
[1729366278403,0.45271059,68262.0,68261.0,0.39879109]
[1729366278598,0.40139768,68262.0,68261.0,0.39879109]
[1729366278797,0.38679159,68262.0,68261.0,0.39879109]
[1729366279400,0.45271059,68262.0,68261.0,0.39879109]
[1729366279596,0.38679159,68262.0,68261.0,0.39879109]
[1729366280105,0.38679159,68262.0,68261.0,0.39739028]
[1729366280605,0.02599159,68262.0,68261.0,0.39739028]
[1729366280808,0.154476,68265.0,68263.0,0.065917]
[1729366281009,0.065916,68265.0,68264.0,0.29438728]
[1729366282409,0.09271518,68265.0,68264.0,0.29438728]
[1729366285006,0.09271518,68265.0,68264.0,0.066117]
[1729366287500,0.09271518,68265.0,68264.0,0.0002]
[1729366287697,0.09271518,68265.0,68264.0,0.04408563]
[1729366291603,0.09271518,68265.0,68264.0,0.0002]
[1729366291799,0.09271518,68265.0,68264.0,0.04408563]
[1729366293007,0.2018561,68265.0,68264.0,0.0002]
[1729366294619,0.20185586,68265.0,68264.0,0.0002]
[1729366295217,0.15688883,68265.0,68264.0,0.0002]
[1729366296921,0.51768883,68265.0,68264.0,0.0002]
[1729366301122,0.45351518,68265.0,68264.0,0.0002]
[1729366304921,0.09271518,68265.0,68264.0,0.0002]
[1729366305417,0.45351518,68265.0,68264.0,0.0002]
[1729366307116,0.09271518,68265.0,68264.0,0.0002]
[1729366307418,0.45351518,68265.0,68264.0,0.0002]
[1729366308022,0.56265302,68265.0,68264.0,0.0002]
[1729366308717,0.20185302,68265.0,68264.0,0.0002]
[1729366308923,0.56265302,68265.0,68264.0,0.0002]
[1729366310716,0.20185302,68265.0,68264.0,0.0002]
[1729366310916,0.56265302,68265.0,68264.0,0.0002]
[1729366314424,0.20185302,68265.0,68264.0,0.0002]
[1729366314624,0.56265302,68265.0,68264.0,0.0002]
[1729366315628,0.20185302,68265.0,68264.0,0.0002]
[1729366316025,0.45351518,68265.0,68264.0,0.0002]
[1729366316532,0.45351518,68265.0,68264.0,0.07333633]
[1729366316923,0.09271518,68265.0,68264.0,0.0002]
[1729366317124,0.45351518,68265.0,68264.0,0.0002]
[1729366317722,0.45351518,68265.0,68264.0,0.07333633]
[1729366318534,0.45351518,68265.0,68264.0,0.0002]
[1729366320839,0.09271518,68265.0,68264.0,0.0002]
[1729366321025,0.45351518,68265.0,68264.0,0.0002]
[1729366321933,0.09271518,68265.0,68264.0,0.07333633]
[1729366322230,0.45351518,68265.0,68264.0,0.07333633]
[1729366323029,0.56265173,68265.0,68264.0,0.0002]
[1729366323223,0.25439336,68265.0,68264.0,0.0002]
[1729366323422,0.56265173,68265.0,68264.0,0.0002]
[1729366323624,0.25439336,68265.0,68264.0,0.0002]
[1729366323829,0.20185173,68265.0,68264.0,0.0002]
[1729366324034,0.56265173,68265.0,68264.0,0.0002]
[1729366324337,0.61519336,68265.0,68264.0,0.0002]
[1729366324830,0.25439336,68265.0,68264.0,0.0002]
[1729366325039,0.56265173,68265.0,68264.0,0.0002]
[1729366325226,0.61519336,68265.0,68264.0,0.0002]
[1729366326133,0.25439336,68265.0,68264.0,0.0002]
[1729366326326,0.56265173,68265.0,68264.0,0.0002]
[1729366326633,0.61519336,68265.0,68264.0,0.0002]
[1729366326834,0.25439336,68265.0,68264.0,0.0002]
[1729366327036,0.20185173,68265.0,68264.0,0.0002]
[1729366327235,0.56265173,68265.0,68264.0,0.0002]
[1729366327437,0.61519336,68265.0,68264.0,0.0002]
[1729366327634,0.25439336,68265.0,68264.0,0.0002]
[1729366327833,0.20185173,68265.0,68264.0,0.0002]
[1729366328041,0.56265173,68265.0,68264.0,0.0002]
[1729366328340,0.61519336,68265.0,68264.0,0.0002]
[1729366329729,0.25439336,68265.0,68264.0,0.0002]